bitfinex/quotes_ETHUSD_20210701
["timestamp","ask_amount","ask_price","bid_price","bid_amount"]
[1625182629622,0.00713006,2118.4,2117.7,4.83316004]
[1625182629775,0.00713006,2118.4,2118.0,7.07764]
[1625182629875,0.00713006,2118.4,2118.0,10.61054]
[1625182630024,0.00713006,2118.4,2118.1,0.15]
[1625182630222,0.00713006,2118.4,2118.1,2.65312085]
[1625182630485,0.00713006,2118.4,2118.1,10.17686882]
[1625182631046,0.00713006,2118.4,2118.1,17.25488882]
[1625182632341,0.00713006,2118.4,2118.1,12.24488882]
[1625182632444,0.00713006,2118.4,2118.1,17.25488882]
[1625182632832,0.00713006,2118.4,2118.1,10.17686882]
[1625182634486,0.00713006,2118.4,2118.1,17.25516882]
[1625182634688,0.11969509,2118.4,2118.1,17.25516882]
[1625182636104,0.11969509,2118.4,2118.1,10.17686882]
[1625182637054,0.11969509,2118.4,2118.1,5.16686882]
[1625182639005,0.11969509,2118.4,2118.1,10.17686882]
[1625182639107,0.11969509,2118.4,2118.1,15.09696882]
[1625182639207,0.11969509,2118.4,2118.1,10.08696882]
[1625182639461,0.11969509,2118.4,2118.1,17.16567882]
[1625182639710,0.11969509,2118.4,2118.1,10.08696882]
[1625182639815,0.11969509,2118.4,2118.1,7.57322085]
[1625182639911,0.11969509,2118.4,2118.1,4.9201]
[1625182640112,0.11969509,2118.4,2118.0,1.4872]
[1625182640211,0.11969509,2118.4,2117.7,0.15]
[1625182640462,0.11969509,2118.4,2117.7,0.05]
[1625182640615,0.11969509,2118.4,2117.4,12.10903522]
[1625182641263,0.11969509,2118.4,2117.5,3.5398569]
[1625182641415,7.19972509,2118.4,2117.7,9.43898]
[1625182641733,0.11969509,2118.4,2117.7,9.43898]
[1625182641882,0.11969509,2118.4,2117.7,17.58898]
[1625182641988,0.11969509,2118.4,2117.7,22.59898]
[1625182642232,0.11969509,2118.4,2117.7,16.6995571]
[1625182642834,0.11969509,2118.4,2118.0,7.07912]
[1625182643031,0.11969509,2118.4,2118.0,12.08912]
[1625182644056,0.11969509,2118.4,2118.0,7.07912]
[1625182644455,0.11969509,2118.4,2118.0,12.08912]
[1625182644709,0.11969509,2118.4,2118.0,20.08912]
[1625182644810,0.11969509,2118.4,2118.1,0.18]
[1625182644961,0.11969509,2118.4,2118.2,0.15]
[1625182646312,0.11969509,2118.4,2118.2,15.22782]
[1625182646565,0.11969509,2118.4,2118.2,20.23782]
[1625182646765,0.11969509,2118.4,2118.3,11.04]
[1625182646964,0.11969509,2118.4,2118.3,5.2]
[1625182647115,0.11969509,2118.4,2118.3,0.19]
[1625182647216,0.20681001,2118.9,2118.4,12.05]
[1625182647318,0.20681001,2118.9,2118.6,7.07703]
[1625182647915,0.20681001,2118.9,2118.6,10.98853]
[1625182648215,0.20681001,2118.9,2118.6,15.99853]
[1625182649556,0.20681001,2118.9,2118.6,23.99853]
[1625182649656,0.20681001,2118.9,2118.7,0.27]
[1625182650302,0.20681001,2118.9,2118.7,0.15]
[1625182650766,0.20681001,2118.9,2118.7,9.58382]
[1625182654733,0.20681001,2118.9,2118.7,0.15]
[1625182654835,0.20681001,2118.9,2118.4,9.43604]
[1625182654934,0.20681001,2118.9,2118.5,0.15]
[1625182655594,0.15681001,2118.9,2118.5,0.15]
[1625182655799,0.15681001,2118.9,2118.6,0.06]
[1625182656095,0.15681001,2118.9,2118.5,0.15]
[1625182656849,0.15681001,2118.9,2118.3,11.1227]
[1625182656949,3.27911001,2118.9,2118.3,10.9727]
[1625182657102,3.27911001,2118.9,2118.1,9.4371]
[1625182657201,3.27911001,2118.9,2118.2,5.01]
[1625182657398,3.27911001,2118.9,2118.1,14.4471]
[1625182657505,3.27911001,2118.9,2118.1,22.4471]
[1625182658006,3.27911001,2118.9,2118.2,7.07804]
[1625182658206,3.27911001,2118.9,2118.2,12.08804]
[1625182662004,0.15681001,2118.9,2118.2,12.08804]
[1625182662103,0.15681001,2118.9,2118.3,0.15]
[1625182662203,0.15681001,2118.9,2118.4,7.07777]
[1625182669728,0.15681001,2118.9,2118.2,5.01]
[1625182669830,0.15681001,2118.9,2118.1,25.9860329]
[1625182670581,0.15681001,2118.9,2118.1,17.9860329]
[1625182670735,0.15681001,2118.9,2117.9,2.35971136]
[1625182670736,4.27421001,2118.9,2117.9,2.35971136]
[1625182670834,11.35291001,2118.9,2117.9,2.35971136]
[1625182671058,0.19248206,2118.8,2117.9,0.00713006]
[1625182671406,0.18,2118.8,2117.9,0.00713006]
[1625182671507,4.29375114,2118.9,2117.9,0.00713006]
[1625182671816,0.15681001,2118.9,2117.9,8.24802176]
[1625182671913,0.15681001,2118.9,2118.0,0.15]
[1625182672310,0.15681001,2118.9,2118.1,2.3594476]
[1625182672407,0.15681001,2118.9,2118.1,9.1850344]
[1625182672661,0.15681001,2118.9,2118.2,0.21]
[1625182672808,0.15681001,2118.9,2118.2,3.7486357]
[1625182673010,0.15681001,2118.9,2118.2,8.7586357]
[1625182673273,0.15681001,2118.9,2118.5,7.07734]
[1625182673423,0.15681001,2118.9,2118.5,7.22734]
[1625182674628,0.15681001,2118.9,2118.5,0.15]
[1625182674722,0.15681001,2118.9,2118.2,5.01]
[1625182674824,0.15681001,2118.9,2118.3,7.07786]
[1625182676726,0.15681001,2118.9,2118.3,11.41596]
[1625182677027,0.15681001,2118.9,2118.3,16.42596]
[1625182677681,0.15681001,2118.9,2118.3,11.41596]
[1625182677825,0.15681001,2118.9,2118.3,16.42596]
[1625182678079,0.15681001,2118.9,2118.3,11.41596]
[1625182678378,0.15681001,2118.9,2118.2,3.5386357]
[1625182678481,0.15681001,2118.9,2118.2,8.5486357]
[1625182678678,0.15681001,2118.9,2118.2,5.01]
[1625182678778,0.15681001,2118.9,2118.1,19.1488144]
[1625182678978,0.15681001,2118.9,2118.2,0.15]
[1625182679080,0.15681001,2118.9,2118.3,7.07786]
[1625182680357,7.23504001,2118.9,2118.3,7.07786]
[1625182680461,7.23504001,2118.9,2118.2,8.2891357]
[1625182680611,7.23504001,2118.9,2118.2,13.2991357]
[1625182680708,7.23504001,2118.9,2118.2,9.7605]
[1625182680911,12.24504001,2118.9,2118.2,4.7505]
[1625182681064,0.16,2118.8,2117.9,0.00713006]
[1625182681161,0.31,2118.8,2117.9,0.00713006]
[1625182681358,0.04,2118.7,2117.9,0.00713006]
[1625182681463,7.08048,2118.3,2117.9,0.00713006]
[1625182681561,11.66598,2118.3,2117.9,0.00713006]
[1625182685268,1.3453,2118.4,2117.9,0.00713006]
[1625182685364,9.5903,2118.5,2117.9,0.00713006]
[1625182685514,31.4483,2118.7,2117.9,0.00713006]
[1625182685667,10.4415,2118.7,2118.0,3.5394382]
[1625182685765,0.15681001,2118.9,2118.0,4.8075382]
[1625182685870,0.15681001,2118.9,2118.1,0.08]
[1625182686015,0.15681001,2118.9,2118.1,3.6347]
[1625182686113,0.15681001,2118.9,2118.3,7.07837]
[1625182687322,0.15681001,2118.9,2118.3,10.6173231]
[1625182687472,0.15681001,2118.9,2118.4,7.07832]
[1625182688675,0.15681001,2118.9,2118.3,3.5389531]
[1625182690173,0.10681001,2118.9,2118.3,3.5389531]
[1625182690473,7.18528001,2118.9,2118.3,10.6173531]
[1625182690573,12.19528001,2118.9,2118.3,10.6173531]
[1625182690779,12.19528001,2118.9,2118.3,7.0784]
[1625182691023,12.19528001,2118.9,2118.4,0.00681001]
[1625182692900,5.11681001,2118.9,2118.4,0.00681001]
[1625182693102,0.10681001,2118.9,2118.4,0.00681001]
[1625182693965,0.10681001,2118.9,2118.4,7.08476001]
[1625182699477,7.18525001,2118.9,2118.4,7.08476001]
[1625182701667,0.1125459,2118.8,2118.4,7.08476001]
[1625182711129,0.1125459,2118.8,2118.4,0.00681001]
[1625182712458,0.1125459,2118.8,2118.4,7.08476001]
[1625182715056,0.1125459,2118.8,2118.4,0.00681001]
[1625182716510,0.1125459,2118.8,2118.4,7.08476001]
[1625182716707,0.1125459,2118.8,2118.5,0.06]
[1625182717210,0.1125459,2118.8,2118.4,0.00681001]
[1625182719658,0.1125459,2118.8,2118.4,7.08505001]
[1625182719760,0.1125459,2118.8,2118.4,7.23505001]
[1625182729153,0.0125459,2118.8,2118.4,7.23505001]
[1625182729257,0.0125459,2118.8,2118.4,0.00681001]
[1625182730747,7.0911359,2118.8,2118.4,0.00681001]
[1625182730894,0.2,2118.7,2118.4,0.00681001]
[1625182730996,5.1283,2118.7,2118.4,0.00681001]
[1625182731195,10.1383,2118.7,2118.4,0.00681001]
[1625182731345,0.18,2118.6,2118.4,0.00681001]
[1625182731845,7.25988,2118.6,2118.4,0.00681001]
[1625182732087,12.26988,2118.6,2118.4,0.00681001]
[1625182733389,7.07988,2118.6,2118.4,0.00681001]
[1625182733590,0.15020843,2118.8,2118.4,0.00681001]
[1625182733892,0.0125459,2118.8,2118.4,0.00681001]
[1625182734190,7.0915559,2118.8,2118.4,0.00681001]
[1625182734408,12.1015559,2118.8,2118.4,0.00681001]
[1625182735512,7.0915559,2118.8,2118.4,0.00681001]
[1625182735765,12.1015559,2118.8,2118.4,0.00681001]
[1625182736792,5.0225459,2118.8,2118.4,0.00681001]
[1625182736987,0.0125459,2118.8,2118.4,0.00681001]
[1625182738042,7.0912159,2118.8,2118.4,0.00681001]
[1625182738241,12.1012159,2118.8,2118.4,0.00681001]
[1625182738815,12.0512159,2118.8,2118.4,0.00681001]
[1625182739312,0.06,2118.7,2118.4,0.00681001]
[1625182739416,7.07881,2118.7,2118.4,0.00681001]
[1625182739715,12.08881,2118.7,2118.4,0.00681001]
[1625182746096,0.04,2118.6,2118.4,0.00681001]
[1625182746247,7.0795,2118.5,2118.4,0.00681001]
[1625182747699,5.14746848,2118.8,2118.4,0.00681001]
[1625182747947,0.13746848,2118.8,2118.4,0.00681001]
[1625182748051,0.18,2118.7,2118.4,0.00681001]
[1625182748201,0.11255616,2118.5,2118.4,0.00681001]
[1625182749548,4.55115616,2118.5,2118.4,0.00681001]
[1625182749901,11.63111616,2118.5,2118.4,0.00681001]
[1625182752409,11.81111616,2118.5,2118.4,0.00681001]
[1625182752608,4.73115616,2118.5,2118.4,0.00681001]
[1625182753959,11.81111616,2118.5,2118.4,0.00681001]
[1625182754067,11.63111616,2118.5,2118.4,0.00681001]
[1625182756218,11.67111616,2118.5,2118.4,0.00681001]
[1625182759606,11.63111616,2118.5,2118.4,0.00681001]
[1625182761011,16.64111616,2118.5,2118.4,0.00681001]
[1625182764714,16.68111616,2118.5,2118.4,0.00681001]
[1625182767010,16.64111616,2118.5,2118.4,0.00681001]
[1625182778342,16.68111616,2118.5,2118.4,0.00681001]
[1625182782832,16.64111616,2118.5,2118.4,0.00681001]
[1625182784640,9.56115616,2118.5,2118.4,0.00681001]
[1625182786397,16.64111616,2118.5,2118.4,0.00681001]
[1625182786550,16.68111616,2118.5,2118.4,0.00681001]
[1625182788853,9.60115616,2118.5,2118.4,0.00681001]
[1625182790458,16.68111616,2118.5,2118.4,0.00681001]
[1625182791092,16.64111616,2118.5,2118.4,0.00681001]
[1625182794259,16.78111616,2118.5,2118.4,0.00681001]
[1625182797607,20.5,2118.4,2117.9,0.00713006]
[1625182797806,25.59,2118.4,2117.9,0.00713006]
[1625182797956,7.08097,2118.2,2117.9,0.00713006]
[1625182798056,12.09097,2118.2,2117.9,0.00713006]
[1625182798157,16.88347,2118.2,2117.9,0.00713006]
[1625182801801,9.8025,2118.2,2117.9,0.00713006]
[1625182801982,5.01,2118.2,2117.9,0.00713006]
[1625182802038,0.11255616,2118.5,2117.9,0.00713006]
[1625182802039,5.12255616,2118.5,2117.9,0.00713006]
[1625182802239,0.11255616,2118.5,2117.9,0.06713006]
[1625182802438,0.11255616,2118.5,2117.9,0.00713006]
[1625182802741,7.19201616,2118.5,2117.9,7.08695006]
[1625182803946,7.19201616,2118.5,2117.9,0.00713006]
[1625182804234,12.20201616,2118.5,2117.9,0.00713006]
[1625182804337,7.19201616,2118.5,2117.9,0.00713006]
[1625182804438,12.20201616,2118.5,2117.9,0.00713006]
[1625182804586,0.1,2118.4,2117.9,0.00713006]
[1625182804686,5.0949,2118.4,2117.9,0.00713006]
[1625182804894,7.08094,2118.2,2117.9,0.00713006]
[1625182805090,0.18,2118.1,2117.9,0.00713006]
[1625182805935,3.72155,2118.1,2117.9,0.00713006]
[1625182806038,54.43268,2118.0,2117.9,6e-08]
[1625182806239,70.51718,2118.0,2117.9,6e-08]
[1625182806504,72.95610684,2118.0,2117.9,6e-08]
[1625182806601,75.20687707,2118.0,2117.9,6e-08]
[1625182806755,75.34381945,2118.0,2117.9,6e-08]
[1625182807306,32.36199017,2117.9,2116.8,0.1393265]
[1625182807408,3.64137471,2117.7,2116.8,0.1393265]
[1625182807502,0.00756632,2117.5,2116.8,0.1393265]
[1625182807704,3.60071962,2117.4,2116.8,0.1393265]
[1625182807807,15.0,2117.3,2116.8,0.1393265]
[1625182808007,20.16,2117.3,2116.6,0.13934429]
[1625182808203,0.12,2117.2,2116.6,0.13934429]
[1625182808306,0.12,2117.2,2116.5,0.13917106]
[1625182808846,0.12,2117.2,2116.4,0.14802581]
[1625182808947,9.44834,2116.8,2116.4,0.14802581]
[1625182809045,13.55334,2116.8,2116.4,0.14802581]
[1625182809192,18.56334,2116.8,2116.4,0.09802581]
[1625182809495,18.56334,2116.8,2116.2,0.41752775]
[1625182809496,9.115,2116.8,2116.2,0.27836232]
[1625182809695,9.115,2116.8,2116.1,0.27836917]
[1625182810098,9.115,2116.8,2116.0,10.54812328]
[1625182810993,9.115,2116.8,2116.1,0.27802392]
[1625182811444,16.20099,2116.8,2116.1,0.27802392]
[1625182811596,9.115,2116.8,2116.1,0.27802392]
[1625182811897,9.115,2116.8,2116.1,2.53761257]
[1625182812098,9.115,2116.8,2116.1,2.25958865]
[1625182812446,9.115,2116.8,2116.1,9.34489865]
[1625182813850,16.20052,2116.8,2116.1,2.25958865]
[1625182814149,16.20052,2116.8,2116.0,21.8126375]
[1625182815202,16.20052,2116.8,2116.0,13.8126375]
[1625182815735,16.20052,2116.8,2116.0,28.8979475]
[1625182815835,16.20052,2116.8,2116.0,20.8979475]
[1625182815937,16.20052,2116.8,2116.0,28.8979475]
[1625182816086,16.20052,2116.8,2116.0,20.8979475]
[1625182816288,16.20052,2116.8,2116.0,10.2701]
[1625182817943,15.50052,2116.8,2116.0,10.2701]
[1625182818289,15.50052,2116.8,2115.9,0.00978436]
[1625182818393,30.5073277,2116.8,2115.9,0.00978436]
[1625182818494,0.15,2116.7,2115.9,0.00978436]
[1625182818594,0.25,2116.7,2115.9,0.00978436]
[1625182818941,28.5,2116.6,2115.3,0.11929687]
[1625182819093,0.05910904,2116.5,2115.2,20.6415]
[1625182819190,0.00978436,2116.4,2115.2,20.6415]
[1625182819294,0.03453198,2116.3,2115.2,20.6415]
[1625182819489,4.64843198,2116.3,2115.2,20.6415]
[1625182819640,9.65843198,2116.3,2115.2,28.6415]
[1625182819739,4.64843198,2116.3,2115.2,28.6415]
[1625182819889,9.65843198,2116.3,2115.2,28.6415]
[1625182820042,9.6239,2116.3,2115.2,28.6415]
[1625182820394,7.08863,2116.0,2115.2,28.6415]
[1625182820498,7.08863,2116.0,2115.2,18.1268]
[1625182820895,4.29112715,2116.0,2115.2,18.1268]
[1625182821248,9.6239,2116.3,2115.2,18.1268]
[1625182821554,9.6239,2116.3,2115.3,7.08794]
[1625182821704,9.6239,2116.3,2115.2,22.56549474]
[1625182821705,0.01611482,2116.4,2115.4,0.15]
[1625182821801,0.01611482,2116.4,2115.4,0.12]
[1625182821901,0.01611482,2116.4,2115.5,0.15]
[1625182822050,0.00978436,2116.4,2115.5,0.15]
[1625182822309,0.00978436,2116.4,2115.5,4.58869474]
[1625182822507,0.00978436,2116.4,2115.5,17.59869474]
[1625182823012,0.00978436,2116.4,2115.8,7.08625]
[1625182823163,0.00978436,2116.4,2115.9,0.15]
[1625182826421,0.00978436,2116.4,2115.6,8.5530867]
[1625182826519,0.00978436,2116.4,2115.6,8.7030867]
[1625182827034,0.00978436,2116.4,2115.7,0.06]
[1625182827135,0.14697117,2116.4,2115.7,0.06]
[1625182827236,0.14697117,2116.4,2115.6,8.7030867]
[1625182827486,0.14697117,2116.4,2115.8,7.08625]
[1625182830097,0.14697117,2116.4,2115.9,0.15]
[1625182830295,0.14697117,2116.4,2116.0,0.08]
[1625182830514,0.14697117,2116.4,2116.1,0.15]
[1625182831404,0.13718681,2116.4,2116.1,0.15]
[1625182833757,0.13718681,2116.4,2115.9,16.7023795]
[1625182833909,0.13718681,2116.4,2115.9,0.15]
[1625182837215,0.13718681,2116.4,2115.6,8.0]
[1625182837367,10.64155681,2116.4,2115.6,8.15]
[1625182837762,10.64155681,2116.4,2115.6,8.0]
[1625182838475,10.64155681,2116.4,2115.2,9.4501]
[1625182838569,10.64155681,2116.4,2115.1,4.9242871]
[1625182838570,15.43501184,2116.3,2115.1,4.9242871]
[1625182838675,15.43501184,2116.3,2115.1,0.2]
[1625182838676,15.44516378,2116.3,2115.1,0.2]
[1625182838771,3.4,2116.1,2115.1,0.2]
[1625182838871,15.02892577,2116.0,2115.1,0.2]
[1625182839024,7.10531074,2115.9,2115.1,0.2]
[1625182839120,15.0,2115.8,2115.1,0.2]
[1625182839220,15.15,2115.8,2115.1,0.2]
[1625182839318,20.16881033,2115.8,2115.1,0.2]
[1625182839577,0.2,2115.7,2115.1,0.2]
[1625182839822,7.09112,2115.4,2115.1,0.2]
[1625182839970,0.15,2115.3,2115.1,0.2]
[1625182840912,7.09183,2115.2,2115.1,0.2]
[1625182841006,12.10183,2115.2,2115.1,0.2]
[1625182842462,7.09183,2115.2,2115.1,0.2]
[1625182842715,20.7909,2115.8,2115.1,4.7771]
[1625182842716,10.0359,2115.8,2115.1,4.7771]
[1625182842793,30.7589,2116.2,2115.1,4.7771]
[1625182842794,20.4419,2116.2,2115.1,4.7771]
[1625182842937,20.4419,2116.2,2115.2,0.15]
[1625182842938,12.2757,2116.2,2115.2,0.15]
[1625182843190,10.2757,2116.2,2115.2,0.15]
[1625182843285,10.2757,2116.2,2115.2,2.59650542]
[1625182843389,10.2757,2116.2,2115.2,6.13996912]
[1625182843486,10.2757,2116.2,2115.5,7.08685]
[1625182843685,10.2757,2116.2,2115.5,7.23685]
[1625182843837,10.2757,2116.2,2115.5,0.15]
[1625182844958,15.2857,2116.2,2115.5,0.15]
[1625182845215,22.37325,2116.2,2115.5,0.15]
[1625182845363,22.37325,2116.2,2115.1,7.28806]
[1625182845364,0.2,2116.1,2115.1,0.2]
[1625182845722,0.15,2116.0,2115.1,0.2]
[1625182845915,0.16,2115.9,2115.1,0.2]
[1625182846015,15.0,2116.1,2115.1,0.2]
[1625182846268,0.15,2116.0,2115.1,0.2]
[1625182846867,7.08998,2115.6,2115.1,0.2]
[1625182847018,12.09998,2115.6,2115.1,0.2]
[1625182852320,0.1,2115.5,2115.1,0.2]
[1625182853266,0.13843881,2115.4,2115.1,0.2]
[1625182853467,7.09067,2115.3,2115.1,0.2]
[1625182853571,12.10067,2115.3,2115.1,0.2]
[1625182854136,8.44,2115.2,2115.1,0.2]
[1625182854336,13.45,2115.2,2115.1,0.2]
[1625182854435,5.15,2115.2,2115.1,0.2]
[1625182854587,0.14,2115.2,2115.1,0.2]
[1625182854686,5.15,2115.2,2115.1,0.2]
[1625182854934,0.14,2115.2,2115.1,0.2]
[1625182855036,5.15,2115.2,2115.1,0.2]
[1625182855287,0.14,2115.2,2115.1,0.2]
[1625182855388,5.15,2115.2,2115.1,0.2]
[1625182855585,0.14,2115.2,2115.1,0.2]
[1625182856184,11.5,2115.1,2114.3,10.9514]
[1625182856270,7.09124,2114.8,2114.3,0.15]
[1625182857117,4.29220354,2114.8,2114.3,0.15]
[1625182858610,5.01,2115.1,2114.3,0.15]
[1625182858815,10.6972,2115.2,2114.3,0.15]
[1625182858816,0.13961283,2114.8,2114.3,0.15]
[1625182859815,7.23085283,2114.8,2114.3,0.15]
[1625182860114,0.13961283,2114.8,2114.3,0.15]
[1625182864083,7.23093283,2114.8,2114.3,0.15]
[1625182864583,7.23093283,2114.8,2114.1,0.35]
[1625182866281,7.23093283,2114.8,2114.1,0.2]
[1625182866381,10.69643283,2114.8,2114.1,0.2]
[1625182866531,0.08,2114.7,2114.1,0.2]
[1625182866978,3.60511283,2114.8,2114.1,0.2]
[1625182867528,7.09313,2114.4,2114.1,0.2]
[1625182870534,0.08,2114.3,2114.1,0.2]
[1625182870634,4.2473,2114.3,2114.1,0.2]
[1625182870787,7.09464,2114.2,2114.1,0.2]
[1625182871490,12.10464,2114.2,2114.1,0.2]
[1625182871585,7.15464,2114.2,2114.1,0.2]
[1625182872036,12.16464,2114.2,2114.1,0.2]
[1625182872336,9.36509518,2114.2,2114.1,0.0001]
[1625182874474,19.45729518,2114.2,2114.1,0.0001]
[1625182875645,19.60729518,2114.2,2114.1,0.0001]
[1625182876888,15.3122,2114.2,2113.1,0.1501]
[1625182876989,15.1022,2114.2,2113.6,1.1842]
[1625182877137,0.14,2114.1,2113.6,1.1842]
[1625182877237,15.1022,2114.2,2113.6,1.1842]
[1625182877990,15.1022,2114.2,2113.5,7.0939]
[1625182878138,15.1022,2114.2,2113.2,8.87167788]
[1625182878240,15.1022,2114.2,2113.2,13.88167788]
[1625182878338,15.1022,2114.2,2113.2,21.88167788]
[1625182878438,15.1022,2114.2,2113.2,21.83167788]
[1625182878540,15.1022,2114.2,2113.2,21.73167788]
[1625182879036,22.19683,2114.2,2113.2,18.33456818]
[1625182879440,0.18,2114.1,2113.2,5.17456818]
[1625182880239,15.1022,2114.2,2113.2,5.17456818]
[1625182880440,9.4613,2113.9,2113.2,5.17456818]
[1625182880544,5.01,2113.9,2113.2,5.17456818]
[1625182880745,15.1022,2114.2,2113.2,5.17456818]
[1625182880846,15.1022,2114.2,2113.2,10.18456818]
[1625182880987,15.1022,2114.2,2113.2,18.18456818]
[1625182881086,15.1022,2114.2,2113.2,18.08456818]
[1625182881882,15.1022,2114.2,2113.2,5.17456818]
[1625182881985,7.09469,2114.1,2113.2,5.17456818]
[1625182882087,12.10469,2114.1,2113.2,5.17456818]
[1625182884708,12.30229819,2114.1,2113.2,5.17456818]
[1625182885488,0.06,2114.0,2113.2,5.17456818]
[1625182885836,0.06,2114.0,2113.1,0.1501]
[1625182886237,0.19760819,2114.1,2113.1,0.1501]
[1625182886388,5.20760819,2114.1,2113.1,0.1501]
[1625182886488,0.19760819,2114.1,2113.1,0.1501]
[1625182886585,5.20760819,2114.1,2113.1,0.1501]
[1625182886791,0.04,2114.0,2113.1,0.1501]
[1625182886887,5.20760819,2114.1,2113.1,0.1501]
[1625182886991,5.20760819,2114.1,2113.1,11.52982]
[1625182887092,0.19760819,2114.1,2113.2,0.15]
[1625182887188,0.19760819,2114.1,2113.2,0.003046]
[1625182887490,0.19760819,2114.1,2113.3,2.63227871]
[1625182887590,0.19760819,2114.1,2113.3,5.1783058]
[1625182887761,0.19760819,2114.1,2113.4,0.15]
[1625182888062,0.19760819,2114.1,2113.5,7.09363]
[1625182888259,0.19760819,2114.1,2113.5,7.24363]
[1625182888659,0.19760819,2114.1,2113.5,0.15]
[1625182888863,0.19760819,2114.1,2113.4,0.9863]
[1625182888962,0.06,2114.0,2113.2,0.15]
[1625182889114,7.09559,2113.8,2113.2,0.15]
[1625182889211,7.09559,2113.8,2113.1,13.1601]
[1625182889311,4.2954598,2113.8,2113.1,13.1601]
[1625182889989,0.19760819,2114.1,2113.1,13.1601]
[1625182890089,0.19760819,2114.1,2113.2,0.12]
[1625182890239,34.63708,2114.2,2113.2,0.15]
[1625182890240,0.19786296,2113.8,2113.2,0.15]
[1625182890339,0.19786296,2113.8,2113.2,7.24442]
[1625182890687,0.19786296,2113.8,2113.2,12.25442]
[1625182892489,0.19786296,2113.8,2113.3,3.5576]
[1625182892945,3.69695,2115.0,2113.4,32.4]
[1625182893043,0.15,2115.0,2113.4,40.03887702]
[1625182893143,11.82511,2114.9,2113.4,50.44347702]
[1625182893241,11.82511,2114.9,2113.4,54.04347702]
[1625182893344,7.09229,2114.8,2114.0,7.092]
[1625182893443,7.09229,2114.8,2114.0,11.8198]
[1625182893543,7.09229,2114.8,2114.1,0.15]
[1625182895235,57.5869,2115.2,2114.1,0.15]
[1625182895383,11.82511,2114.9,2114.1,0.15]
[1625182895781,11.93787258,2114.9,2114.1,0.15]
[1625182896484,11.93787258,2114.9,2113.6,3.5462467]
[1625182896485,7.09219,2114.6,2113.6,13.02230683]
[1625182896589,7.09219,2114.6,2113.9,0.15]
[1625182896684,12.10219,2114.6,2113.9,0.15]
[1625182896812,7.09219,2114.6,2113.5,10.2493]
[1625182896907,12.10219,2114.6,2113.6,0.15]
[1625182897011,0.16,2114.5,2113.6,0.15]
[1625182897107,5.01,2114.6,2113.6,0.15]
[1625182897207,5.01,2114.6,2113.5,10.2493]
[1625182897358,14.61717,2114.7,2113.5,10.2493]
[1625182897659,14.61717,2114.7,2113.4,12.95062709]
[1625182897861,14.61717,2114.7,2113.4,20.95062709]
[1625182897959,14.61717,2114.7,2113.4,25.96062709]
[1625182898063,0.04,2114.6,2113.4,25.96062709]
[1625182898412,7.09445,2114.1,2113.4,12.95062709]
[1625182898513,7.09445,2114.1,2113.4,2.54602709]
[1625182898615,12.10445,2114.1,2113.4,2.54602709]
[1625182898818,12.10445,2114.1,2113.1,10.4908]
[1625182899538,12.10445,2114.1,2113.1,17.58572]
[1625182899639,7.09445,2114.1,2113.1,21.1327996]
[1625182899747,5.01,2114.1,2113.2,0.15]
[1625182899888,5.01,2114.2,2113.2,0.15]
[1625182900087,19.33998,2114.5,2113.2,0.15]
[1625182900238,19.33998,2114.5,2113.2,2.69602709]
[1625182900338,29.56958,2114.5,2113.2,2.69602709]
[1625182900437,0.06,2114.4,2113.2,2.69602709]
[1625182900838,29.56958,2114.5,2113.2,2.69602709]
[1625182900937,9.45926,2114.2,2113.2,2.69602709]
[1625182901039,14.46926,2114.2,2113.2,2.69602709]
[1625182901689,24.55958,2114.5,2113.2,7.70602709]
[1625182901842,21.0122,2114.5,2113.2,10.33272721]
[1625182901940,0.11280521,2114.3,2113.2,10.33272721]
[1625182903191,7.09416,2114.1,2113.2,17.42718721]
[1625182903390,12.10416,2114.1,2113.2,17.42718721]
[1625182903547,5.01,2114.1,2113.2,17.42718721]
[1625182903741,0.11280521,2114.3,2113.2,17.42718721]
[1625182903841,0.11280521,2114.3,2113.3,0.1]
[1625182903993,0.11280521,2114.3,2113.3,0.15]
[1625182905394,7.20680521,2114.3,2113.5,7.09401]
[1625182905544,12.21680521,2114.3,2113.5,7.09401]
[1625182905873,12.21680521,2114.3,2113.3,17.60867]
[1625182905973,12.21680521,2114.3,2113.3,17.55867]
[1625182906277,0.06,2114.2,2113.3,17.55867]
[1625182907176,5.12280521,2114.3,2113.3,9.60867]
[1625182907277,3.0389,2114.2,2113.3,9.60867]
[1625182907376,7.09513,2113.9,2113.3,9.60867]
[1625182907477,1.3062,2114.0,2113.2,5.17272721]
[1625182907578,1.3062,2114.0,2113.2,2.54602709]
[1625182907677,1.3062,2114.0,2113.1,0.1501]
[1625182908518,7.09623,2113.6,2113.1,0.1501]
[1625182908668,11.45243,2113.6,2113.1,0.1501]
[1625182908977,16.46243,2113.6,2113.1,0.1501]
[1625182909121,0.04,2113.5,2113.1,0.1501]
[1625182909572,7.09701,2113.3,2113.1,0.1501]
[1625182909718,4.29621515,2113.3,2113.1,0.1501]
[1625182909816,0.04,2113.2,2113.1,0.1501]
[1625182910069,9.30621515,2113.3,2113.1,0.1501]
[1625182911426,5.01,2113.3,2113.1,0.1501]
[1625182911523,21.238,2113.7,2113.1,0.1501]
[1625182912272,10.275,2113.7,2113.1,0.1501]
[1625182912606,17.85079,2113.9,2113.1,7.24549]
[1625182912608,10.7554,2113.9,2113.1,7.24549]
[1625182912799,10.7554,2113.9,2113.2,0.15]
[1625182912899,0.11280521,2114.3,2113.2,0.15]
[1625182913347,0.11280521,2114.3,2113.2,2.67936042]
[1625182913450,0.11280521,2114.3,2113.2,7.68936042]
[1625182913551,9.45974,2114.2,2113.2,13.32140872]
[1625182913653,9.55974,2114.2,2113.2,10.7920483]
[1625182913750,9.55974,2114.2,2113.2,10.6420483]
[1625182913850,0.04,2114.1,2113.1,2.77680012]
[1625182914304,9.45974,2114.2,2113.1,7.31320012]
[1625182914400,14.46974,2114.2,2113.1,7.31320012]
[1625182914648,7.09512,2113.9,2113.1,14.40832012]